fUSD/lending_fUSD_20250110
["ID","MTS","AMOUNT","RATE_DAILY","PERIOD"]
[348413733,1736521859419,-500.0,9.835e-05,2]
[348413734,1736521859428,-633.07697136,9.835e-05,2]
[348413735,1736521859438,-500.0,9.835e-05,2]
[348413736,1736521859447,-500.0,9.835e-05,2]
[348413737,1736521859456,-584.51614515,9.835e-05,2]
[348413738,1736521859465,-500.0,9.835e-05,2]
[348413739,1736521859475,-500.0,9.835e-05,2]
[348413740,1736521859484,-500.0,9.835e-05,2]
[348413741,1736521859493,-729.07,9.835e-05,2]
[348413742,1736521859503,-2183.94,9.835e-05,2]
[348413743,1736521859511,-738.69,9.835e-05,2]
[348413744,1736521859520,-500.0,9.835e-05,2]
[348413745,1736521859530,-741.34,9.835e-05,2]
[348413746,1736521859539,-286.13398965,9.835e-05,2]
[348413747,1736521859549,-540.79,9.835e-05,2]
[348413748,1736521859563,-500.0,9.835e-05,2]
[348413749,1736521859572,-508.54313898,9.835e-05,2]
[348413750,1736521859581,-500.0,9.835e-05,2]
[348413751,1736521859590,-1207.61,9.835e-05,2]
[348413752,1736521859600,-918.77,9.835e-05,2]
[348413753,1736521859610,-500.0,9.835e-05,2]
[348413754,1736521859620,-277.72737736,9.835e-05,2]
[348413755,1736521859629,-500.0,9.835e-05,2]
[348413756,1736521859639,-500.0,9.835e-05,2]
[348413757,1736521859648,-935.29,9.835e-05,2]
[348413758,1736521859657,-500.0,9.835e-05,2]
[348413759,1736521859667,-500.0,9.835e-05,2]
[348413760,1736521859676,-500.0,9.835e-05,2]
[348413761,1736521859685,-500.0,9.835e-05,2]
[348413762,1736521859695,-736.04,9.835e-05,2]
[348413763,1736521859704,-1207.76,9.835e-05,2]
[348413764,1736521859714,-500.0,9.835e-05,2]
[348413765,1736521859724,-587.9461012,9.835e-05,2]
[348413766,1736521859733,-500.0,9.835e-05,2]
[348413767,1736521859743,-500.0,9.835e-05,2]
[348413768,1736521859752,-500.0,9.835e-05,2]
[348413769,1736521859762,-1300.63,9.835e-05,2]
[348413770,1736521859771,-500.0,9.835e-05,2]
[348413771,1736521859781,-500.0,9.835e-05,2]
[348413772,1736521859790,-818.42,9.835e-05,2]
[348413773,1736521859799,-500.0,9.835e-05,2]
[348413774,1736521859813,-500.0,9.835e-05,2]
[348413775,1736521859822,-721.59,9.835e-05,2]
[348413776,1736521859831,-1068.86,9.835e-05,2]
[348413777,1736521859841,-500.0,9.835e-05,2]
[348413778,1736521859850,-500.0,9.835e-05,2]
[348413779,1736521859860,-500.0,9.835e-05,2]
[348413780,1736521859869,-606.87,9.835e-05,2]
[348413781,1736521859879,-862.43,9.835e-05,2]
[348413782,1736521859888,-622.85404892,9.835e-05,2]
[348413783,1736521859898,-500.0,9.835e-05,2]
[348413784,1736521859908,-1355.1,9.835e-05,2]
[348413785,1736521859917,-615.93,9.835e-05,2]
[348413786,1736521859926,-500.0,9.835e-05,2]
[348413787,1736521859936,-500.0,9.835e-05,2]
[348413788,1736521859945,-562.53,9.835e-05,2]
[348413789,1736521859955,-260.19932949,9.835e-05,2]
[348413790,1736521859965,-500.0,9.835e-05,2]
[348413791,1736521859974,-500.0,9.835e-05,2]
[348413792,1736521859983,-500.0,9.835e-05,2]
[348413793,1736521859992,-500.0,9.835e-05,2]
[348413794,1736521860001,-500.0,9.835e-05,2]
[348413795,1736521860010,-721.01,9.835e-05,2]
[348413796,1736521860019,-1061.87,9.835e-05,2]
[348413797,1736521860028,-1257.43,9.835e-05,2]
[348413798,1736521860038,-500.0,9.835e-05,2]
[348413799,1736521860048,-500.0,9.835e-05,2]
[348413800,1736521860062,-500.0,9.835e-05,2]
[348413801,1736521860072,-500.0,9.835e-05,2]
[348413802,1736521860082,-859.14,9.835e-05,2]
[348413803,1736521860093,-2761.04,9.835e-05,2]
[348413804,1736521860102,-500.0,9.835e-05,2]
[348413805,1736521860112,-1388.49,9.835e-05,2]
[348413806,1736521860121,-500.0,9.835e-05,2]
[348413807,1736521860134,-507.47424146,9.835e-05,2]
[348413808,1736521860144,-500.0,9.835e-05,2]
[348413809,1736521860154,-613.98,9.835e-05,2]
[348413810,1736521860163,-500.0,9.835e-05,2]
[348413811,1736521860173,-1134.48,9.835e-05,2]
[348413812,1736521860183,-1137.72,9.835e-05,2]
[348413813,1736521860192,-500.0,9.835e-05,2]
[348413814,1736521860201,-751.68,9.835e-05,2]
[348413815,1736521860212,-1284.11,9.835e-05,2]
[348413816,1736521860221,-862.34,9.835e-05,2]
[348413817,1736521860231,-500.0,9.835e-05,2]
[348413818,1736521860240,-4885.23,9.835e-05,2]
[348413819,1736521860249,-500.0,9.835e-05,2]
[348413820,1736521860259,-500.0,9.835e-05,2]
[348413821,1736521860269,-1029.31,9.835e-05,2]
[348413822,1736521860279,-500.0,9.835e-05,2]
[348413823,1736521860289,-500.0,9.835e-05,2]
[348413824,1736521860299,-500.0,9.835e-05,2]
[348413825,1736521860312,-1059.12,9.835e-05,2]
[348413826,1736521860322,-500.0,9.835e-05,2]
[348413827,1736521860332,-500.0,9.835e-05,2]
[348413828,1736521860342,-500.0,9.835e-05,2]
[348413829,1736521860352,-1078.06,9.835e-05,2]
[348413830,1736521860361,-1057.47,9.835e-05,2]
[348413831,1736521860371,-500.0,9.835e-05,2]
[348413832,1736521860381,-1581.57,9.835e-05,2]
[348413833,1736521860391,-500.0,9.835e-05,2]
[348413834,1736521860401,-500.0,9.835e-05,2]
[348413835,1736521860412,-500.0,9.835e-05,2]
[348413836,1736521860421,-2490.04,9.835e-05,2]
[348413837,1736521860431,-500.0,9.835e-05,2]
[348413838,1736521860440,-1395.95,9.835e-05,2]
[348413839,1736521860450,-500.0,9.835e-05,2]
[348413840,1736521860460,-550.55,9.835e-05,2]
[348413841,1736521860469,-1312.17,9.835e-05,2]
[348413842,1736521860479,-500.0,9.835e-05,2]
[348413843,1736521860489,-828.26,9.835e-05,2]
[348413844,1736521860498,-876.19,9.835e-05,2]
[348413845,1736521860507,-1537.19,9.835e-05,2]
[348413846,1736521860518,-500.0,9.835e-05,2]
[348413847,1736521860527,-500.0,9.835e-05,2]
[348413848,1736521860537,-500.0,9.835e-05,2]
[348413849,1736521860547,-499.01427277,9.835e-05,2]
[348413850,1736521860559,-500.0,9.835e-05,2]
[348413851,1736521860569,-6122.17,9.835e-05,2]
[348413852,1736521860579,-500.0,9.835e-05,2]
[348413853,1736521860589,-1343.71,9.835e-05,2]
[348413854,1736521860598,-500.0,9.835e-05,2]
[348413855,1736521860607,-553.86,9.835e-05,2]
[348413856,1736521860617,-1357.86,9.835e-05,2]
[348413857,1736521860626,-506.06226391,9.835e-05,2]
[348413858,1736521860636,-979.82,9.836e-05,2]
[348413859,1736521860804,-389.87,9.836e-05,2]
[348413860,1736521860814,-388691.18184255,9.85e-05,2]
[348413861,1736521860823,-1084.85,9.873e-05,2]
[348413862,1736521860832,-4651.29,9.873e-05,2]
[348413863,1736521860842,-1269.44,9.873e-05,2]
[348413864,1736521860851,-4597.67,9.873e-05,2]
[348413865,1736521860860,-500.0,9.873e-05,2]
[348413866,1736521860870,-1246.8,9.873e-05,2]
[348413867,1736521860880,-500.0,9.873e-05,2]
[348413868,1736521860889,-1641.56,9.873e-05,2]
[348413869,1736521860898,-1426.27,9.873e-05,2]
[348413870,1736521860907,-2092.96,9.873e-05,2]
[348413871,1736521860917,-2364.65,9.873e-05,2]
[348413872,1736521860926,-1613.63,9.873e-05,2]
[348413873,1736521860936,-3828.05,9.873e-05,2]
[348413874,1736521860945,-414.22278414,9.882e-05,2]
[348413875,1736521860955,-2163.43,9.899e-05,2]
[348413876,1736521860965,-1470.12,9.899e-05,2]
[348413877,1736521860974,-2141.94,9.899e-05,2]
[348413878,1736521860983,-1648.63,9.899e-05,2]
[348413879,1736521860992,-1921.47,9.899e-05,2]
[348413880,1736521861002,-2751.11,9.899e-05,2]
[348413881,1736521861011,-1935.58,9.899e-05,2]
[348413882,1736521861021,-6614.54,9.899e-05,2]
[348413883,1736521861031,-2545.58,9.899e-05,2]
[348413884,1736521861040,-3403.07,9.899e-05,2]
[348413885,1736521861050,-1978.85,9.899e-05,2]
[348413886,1736521861061,-2260.84,9.899e-05,2]
[348413887,1736521861071,-500.0,9.899e-05,2]
[348413888,1736521861080,-1471.24,9.899e-05,2]
[348413889,1736521861089,-3305.05,9.899e-05,2]
[348413890,1736521861099,-1593.96,9.899e-05,2]
[348413891,1736521861109,-1193.11,9.899e-05,2]
[348413892,1736521861118,-1332.43,9.899e-05,2]
[348413893,1736521861128,-4485.668703,9.9e-05,2]
[348413894,1736521861139,-169.74,9.932e-05,2]
[348413895,1736521861149,-1436.72,9.947e-05,2]
[348413896,1736521861159,-1269.6,9.947e-05,2]
[348413897,1736521861168,-1258.33,9.947e-05,2]
[348413898,1736521861177,-2542.12,9.947e-05,2]
[348413899,1736521861188,-1919.48,9.947e-05,2]
[348413900,1736521861198,-500.0,9.947e-05,2]
[348413901,1736521861207,-3004.29,9.947e-05,2]
[348413902,1736521861217,-159.37050633,9.947e-05,2]
[348413903,1736521861227,-4261.55,9.947e-05,2]
[348413904,1736521861236,-2524.98,9.947e-05,2]
[348413905,1736521861246,-1407.24,9.947e-05,2]
[348413906,1736521861255,-500.0,9.947e-05,2]
[348413907,1736521861264,-1682.52,9.947e-05,2]
[348413908,1736521861274,-1966.54,9.947e-05,2]
[348413909,1736521861283,-1213.29,9.947e-05,2]
[348413910,1736521861292,-500.0,9.947e-05,2]
[348413911,1736521861302,-500.0,9.947e-05,2]
[348413912,1736521861312,-1134.06,9.947e-05,2]
[348413913,1736521861321,-50972.20444127,9.96e-05,2]
[348413914,1736521861330,-1436121.78690704,9.998e-05,2]
[348413915,1736521861338,-151.0,9.998e-05,2]
[348413916,1736521861347,-500.87746691,9.999e-05,2]
[348413917,1736521861357,-2141.94,9.999e-05,2]
[348413918,1736521861366,-1648.63,9.999e-05,2]
[348413919,1736521861376,-1648.63,9.999e-05,2]
[348413920,1736521861386,-1648.63,9.999e-05,2]
[348413921,1736521861395,-1648.63,9.999e-05,2]
[348413922,1736521861405,-1648.63,9.999e-05,2]
[348413923,1736521861416,-1648.63,9.999e-05,2]
[348413924,1736521861425,-1648.63,9.999e-05,2]
[348413925,1736521861435,-1648.63,9.999e-05,2]
[348413926,1736521861445,-1648.63,9.999e-05,2]
[348413927,1736521861455,-1648.63,9.999e-05,2]
[348413928,1736521861464,-1648.63,9.999e-05,2]
[348413929,1736521861475,-1648.63,9.999e-05,2]
[348413930,1736521861485,-1648.63,9.999e-05,2]
[348413931,1736521861494,-1648.63,9.999e-05,2]
[348413932,1736521861504,-1648.63,9.999e-05,2]
[348413933,1736521861514,-1648.63,9.999e-05,2]
[348413934,1736521861524,-1648.63,9.999e-05,2]
[348413935,1736521861534,-1648.63,9.999e-05,2]
[348413936,1736521861544,-1648.63,9.999e-05,2]
[348413937,1736521861555,-1648.63,9.999e-05,2]
[348413938,1736521861565,-1648.63,9.999e-05,2]
[348413939,1736521861574,-1648.63,9.999e-05,2]
[348413940,1736521861584,-1648.79,9.999e-05,2]
[348413941,1736521861594,-500.0,9.999e-05,2]
[348413942,1736521861604,-500.0,9.999e-05,2]
[348413943,1736521861613,-500.0,9.999e-05,2]
[348413944,1736521861622,-500.0,9.999e-05,2]
[348413945,1736521861631,-500.0,9.999e-05,2]
[348413946,1736521861640,-500.0,9.999e-05,2]
[348413947,1736521861650,-500.0,9.999e-05,2]
[348413948,1736521861659,-500.0,9.999e-05,2]
[348413949,1736521861669,-500.0,9.999e-05,2]
[348413950,1736521861679,-500.0,9.999e-05,2]
[348413951,1736521861689,-500.0,9.999e-05,2]
[348413952,1736521861699,-500.0,9.999e-05,2]
[348413953,1736521861709,-500.0,9.999e-05,2]
[348413954,1736521861719,-500.0,9.999e-05,2]
[348413955,1736521861729,-500.0,9.999e-05,2]
[348413956,1736521861739,-500.0,9.999e-05,2]
[348413957,1736521861749,-2264035.46508372,0.0001,2]
[348413958,1736521861759,-28711.30314759,0.0001,2]
[348413959,1736521862694,-500.0,8.739e-05,2]
[348413960,1736521862703,-500.0,9.013e-05,2]
[348413961,1736521862889,-491.27006269,9.287e-05,2]
[348413962,1736521862991,-8.72993731,9.287e-05,2]
[348413963,1736521863001,-500.0,9.561e-05,2]
[348413964,1736521863013,-1104.0,9.822e-05,2]
[348413965,1736521863024,-1093.89,9.835e-05,2]
[348413966,1736521863035,-500.0,9.835e-05,2]
[348413967,1736521863047,-500.0,9.947e-05,2]
[348413968,1736521863062,-6562.70541905,0.0001,2]
[348413969,1736521863075,-8035.12662196,0.0001,2]
[348413970,1736521863085,-980.0731,0.0001,2]
[348413971,1736521863096,-1000.0,0.0001,2]
[348413972,1736521863106,-1000.0,0.0001,2]
[348413973,1736521863118,-121097.41536738,0.0001,2]
[348413974,1736521863134,-562.2526088,0.0001,2]
[348413975,1736521863183,-500.0,8.777e-05,2]
[348413976,1736521863194,-1277.69100315,0.0001,2]
[348413977,1736521863206,-2774.0273353,0.0001,2]
[348413978,1736521863823,-466.4825,9.051e-05,2]
[348413979,1736521863851,-250.03,8.64e-05,2]
[348413980,1736521863860,-33.5175,9.051e-05,2]
[348413981,1736521863870,-2230.82338174,0.0001,2]
[348413982,1736521863883,-420.75178603,0.0001,2]
[348413983,1736521863906,-150.0,9.178e-05,2]
[348413984,1736521863916,-944.49999998,0.0001,2]
[348413985,1736521863929,-7500.53686514,0.0001,2]
[348413986,1736521863962,-500.0,9.325e-05,2]
[348413987,1736521863972,-548969.22401348,0.0001,2]
[348413988,1736521863982,-35590.48930041,0.0001,2]
[348413989,1736521863992,-1000.0,0.0001,2]
[348413990,1736521864002,-231.35633895,0.0001,4]
[348413991,1736521864012,-1000.0,0.0001,2]
[348413992,1736521864021,-250.0,0.0001,2]
[348413993,1736521864031,-250.0,0.0001,2]
[348413994,1736521864041,-250.0,0.0001,2]
[348413995,1736521864050,-250.0,0.0001,2]
[348413996,1736521864065,-250.0,0.0001,2]
[348413997,1736521864075,-250.0,0.0001,2]
[348413998,1736521864085,-250.0,0.0001,2]
[348413999,1736521864095,-250.0,0.0001,2]
[348414000,1736521864105,-250.0,0.0001,2]
[348414001,1736521864115,-250.0,0.0001,2]
[348414002,1736521864125,-250.0,0.0001,2]
[348414003,1736521864136,-250.0,0.0001,2]
[348414004,1736521864147,-250.0,0.0001,2]
[348414005,1736521864157,-252.8,0.0001,2]
[348414006,1736521864166,-187768.75069146,0.0001,2]
[348414007,1736521864179,-3852.62050801,0.0001,2]
[348414008,1736521865063,-500.0,8.739e-05,2]
[348414009,1736521865072,-500.0,8.739e-05,2]
[348414010,1736521865082,-81.89403899,8.739e-05,2]
[348414011,1736521865093,-418.10596101,8.739e-05,2]
[348414012,1736521865103,-712.70799317,8.794e-05,2]
[348414013,1736521865112,-150.0,9.178e-05,2]
[348414014,1736521865122,-437.12,9.178e-05,2]
[348414015,1736521865135,-500.0,9.599e-05,2]
[348414016,1736521865144,-500.0,9.873e-05,2]
[348414017,1736521865154,-65481.36604545,0.0001,2]
[348414018,1736521881216,662.04,8.219e-05,2]
[348414022,1736522150093,3756.2609,8.477e-05,2]
[348414023,1736522192521,2000.0,8.124e-05,2]
[348414025,1736522234002,1000.0,8.219e-05,2]
[348414026,1736522256377,403.8,8.219e-05,2]
[348414029,1736522312118,150.0,0.00019214,120]
[348414031,1736522325764,23900.0,8.082e-05,2]
[348414032,1736522551486,150.0,0.00018975,120]
[348414033,1736522611440,150.0,0.000199,120]
[348414034,1736522665027,250.0,7.952e-05,2]
[348414035,1736522692832,1137.67,7.932e-05,2]
[348414036,1736522720547,166.82,8.463e-05,2]
[348414037,1736522725805,500.0,7.915e-05,2]
[348414038,1736522726303,200.0,7.915e-05,2]
[348414048,1736522755529,1919.19081665,0.00017,120]
[348414049,1736522782308,250.0,7.889e-05,2]
[348414052,1736522800320,680.2,8.219e-05,2]
[348414054,1736522827680,400.78587399,0.0002,120]
[348414056,1736522839741,168.35,8.165e-05,2]
[348414057,1736522851367,150.0,0.00018452,120]
[348414068,1736522924818,152.68620582,0.0002,120]
[348414071,1736522956957,-1000.0,8.576e-05,2]
[348414072,1736522956979,-150.0,8.576e-05,2]
[348414073,1736522957004,-2575.20837135,8.576e-05,2]
[348414074,1736522957025,-5908.15742684,8.577e-05,2]
[348414075,1736522957047,-366.63420181,8.577e-05,2]
[348414078,1736522957579,169.74,8.219e-05,2]
[348414079,1736522958872,-729.17579819,8.577e-05,2]
[348414080,1736522958895,-878.83,8.577e-05,2]
[348414081,1736522958917,-500.0,8.577e-05,2]
[348414082,1736522958939,-924.87,8.577e-05,2]
[348414083,1736522958959,-1162.2,8.577e-05,2]
[348414084,1736522958981,-1081.98,8.577e-05,2]
[348414085,1736522959005,-676.54,8.577e-05,2]
[348414086,1736522959028,-500.0,8.577e-05,2]
[348414087,1736522959050,-1184.25,8.577e-05,2]
[348414088,1736522959073,-928.5,8.577e-05,2]
[348414089,1736522959097,-890.36,8.577e-05,2]
[348414090,1736522959119,-543.29420181,8.577e-05,2]
[348414091,1736522959843,-514.80579819,8.577e-05,2]
[348414092,1736522959867,-500.0,8.577e-05,2]
[348414093,1736522959888,-500.0,8.577e-05,2]
[348414094,1736522959910,-500.0,8.577e-05,2]
[348414095,1736522959932,-882.45,8.577e-05,2]
[348414096,1736522959955,-1148.23,8.577e-05,2]
[348414097,1736522959980,-500.0,8.577e-05,2]
[348414098,1736522960005,-717.8,8.577e-05,2]
[348414099,1736522960026,-1318.02,8.577e-05,2]
[348414100,1736522960048,-1445.67,8.577e-05,2]
[348414101,1736522960070,-729.69,8.577e-05,2]
[348414102,1736522960091,-500.0,8.577e-05,2]
[348414103,1736522960116,-500.0,8.577e-05,2]
[348414104,1736522960138,-243.33420181,8.577e-05,2]
[348414105,1736522960280,-1222.90579819,8.577e-05,2]
[348414106,1736522960303,-1064.1,8.577e-05,2]
[348414107,1736522960326,-1108.95,8.577e-05,2]
[348414108,1736522960348,-1937.77,8.577e-05,2]
[348414109,1736522960370,-500.0,8.577e-05,2]
[348414110,1736522960392,-2265.16,8.577e-05,2]
[348414111,1736522960415,-500.0,8.577e-05,2]
[348414112,1736522960437,-500.0,8.577e-05,2]
[348414113,1736522960459,-901.11420181,8.577e-05,2]
[348414114,1736522960983,-156.37579819,8.577e-05,2]
[348414115,1736522961006,-500.0,8.577e-05,2]
[348414116,1736522961030,-500.0,8.577e-05,2]
[348414117,1736522961071,-500.0,8.577e-05,2]
[348414118,1736522961097,-500.0,8.577e-05,2]
[348414119,1736522961121,-1061.54,8.577e-05,2]
[348414120,1736522961145,-1470.67,8.577e-05,2]
[348414121,1736522961169,-500.0,8.577e-05,2]
[348414122,1736522961193,-500.0,8.577e-05,2]
[348414123,1736522961216,-500.0,8.577e-05,2]
[348414124,1736522961239,-745.27,8.577e-05,2]
[348414125,1736522961264,-500.0,8.577e-05,2]
[348414126,1736522961289,-500.0,8.577e-05,2]
[348414127,1736522961312,-500.0,8.577e-05,2]
[348414128,1736522961333,-500.0,8.577e-05,2]
[348414129,1736522961355,-693.6,8.577e-05,2]
[348414130,1736522961379,-372.54420181,8.577e-05,2]
[348414131,1736522964820,-3256.38579819,8.577e-05,2]
[348414132,1736522964843,-500.0,8.577e-05,2]
[348414133,1736522964867,-500.0,8.577e-05,2]
[348414134,1736522964891,-956.24,8.577e-05,2]
[348414135,1736522964914,-616.85,8.577e-05,2]
[348414136,1736522964937,-1012.26,8.577e-05,2]
[348414137,1736522964971,-500.0,8.577e-05,2]
[348414138,1736522964999,-2271.72,8.577e-05,2]
[348414139,1736522965024,-386.54420181,8.577e-05,2]
[348414140,1736522965120,-113.45579819,8.577e-05,2]
[348414141,1736522965144,-500.0,8.577e-05,2]
[348414142,1736522965167,-500.0,8.577e-05,2]
[348414143,1736522965189,-500.0,8.577e-05,2]
[348414144,1736522965212,-1274.35,8.577e-05,2]
[348414145,1736522965237,-4912.19,8.577e-05,2]
[348414146,1736522965260,-572.0,8.577e-05,2]
[348414147,1736522965285,-500.0,8.577e-05,2]
[348414148,1736522965308,-500.0,8.577e-05,2]
[348414149,1736522965332,-628.00420181,8.577e-05,2]
[348414150,1736522965774,-68.76579819,8.577e-05,2]
[348414151,1736522965800,-701.21,8.577e-05,2]
[348414152,1736522965824,-6057.02,8.577e-05,2]
[348414153,1736522965848,-969.86,8.577e-05,2]
[348414154,1736522965870,-500.0,8.577e-05,2]
[348414155,1736522965896,-864.4,8.577e-05,2]
[348414156,1736522965920,-500.0,8.577e-05,2]
[348414157,1736522965942,-338.74420181,8.577e-05,2]
[348414158,1736522966041,-161.25579819,8.577e-05,2]
[348414159,1736522966065,-643.05,8.577e-05,2]
[348414160,1736522966090,-823.49,8.577e-05,2]
[348414161,1736522966114,-696.44,8.577e-05,2]
[348414162,1736522966146,-573.02,8.577e-05,2]
[348414163,1736522966170,-500.0,8.577e-05,2]
[348414164,1736522966195,-2921.39029664,8.577e-05,2]
[348414165,1736522966218,-500.0,8.577e-05,2]
[348414166,1736522966241,-500.0,8.577e-05,2]
[348414167,1736522966268,-849.34,8.577e-05,2]
[348414168,1736522966291,-500.0,8.577e-05,2]
[348414169,1736522966316,-1332.01390517,8.577e-05,2]
[348414170,1736522966531,-1409.66609483,8.577e-05,2]
[348414171,1736522966558,-1090.78,8.577e-05,2]
[348414172,1736522966582,-500.0,8.577e-05,2]
[348414173,1736522966605,-500.0,8.577e-05,2]
[348414174,1736522966631,-928.64,8.577e-05,2]
[348414175,1736522966653,-500.0,8.577e-05,2]
[348414176,1736522966676,-500.0,8.577e-05,2]
[348414177,1736522966703,-4570.91390517,8.577e-05,2]
[348414178,1736522966856,-1295.04609483,8.577e-05,2]
[348414179,1736522967178,-500.0,8.577e-05,2]
[348414180,1736522967204,-974.19,8.577e-05,2]
[348414181,1736522967226,-500.0,8.577e-05,2]
[348414182,1736522967251,-871.11,8.577e-05,2]
[348414183,1736522967277,-1238.69,8.577e-05,2]
[348414184,1736522967300,-500.0,8.577e-05,2]
[348414185,1736522967323,-500.0,8.577e-05,2]
[348414186,1736522967345,-500.0,8.577e-05,2]
[348414187,1736522967367,-637.63,8.577e-05,2]
[348414188,1736522967389,-646.12,8.577e-05,2]
[348414189,1736522967413,-1837.21390517,8.578e-05,2]
[348414190,1736522967459,-10000.0,8.578e-05,2]
[348414191,1736522967534,-2546.92219483,8.578e-05,2]
[348414192,1736522969339,500.0,8.577e-05,2]
[348414193,1736522975813,918.03,8.577e-05,2]
[348414196,1736522985759,500.0,8.577e-05,2]
[348414197,1736522988818,1578.46,8.577e-05,2]
[348414198,1736522997477,1248.67,8.577e-05,2]
[348414201,1736523020051,1571.99,8.577e-05,2]
[348414203,1736523028564,1135.92780517,8.577e-05,2]
[348414204,1736523028589,389.37219483,8.577e-05,2]
[348414210,1736523032349,-300.0,8.638e-05,2]
[348414211,1736523032359,-628.4275,8.638e-05,2]
[348414215,1736523032528,-371.5725,8.638e-05,2]
[348414216,1736523032538,-1231.9275,8.638e-05,2]
[348414217,1736523032550,-555.57041196,8.638e-05,2]
[348414218,1736523032609,-574.244,8.638e-05,2]
[348414219,1736523032655,-138.25808804,8.638e-05,2]
[348414220,1736523032665,-997.34191196,8.639e-05,2]
[348414221,1736523036960,-4002.65808804,8.639e-05,2]
[348414222,1736523036969,-500.0,8.661e-05,2]
[348414223,1736523036979,-264.27033052,8.661e-05,2]
[348414224,1736523036988,-150.0,8.677e-05,2]
[348414225,1736523036997,-500.0,8.678e-05,2]
[348414226,1736523037006,-205.70089354,8.678e-05,2]
[348414227,1736523037016,-508.37300892,8.678e-05,2]
[348414228,1736523037025,-500.0,8.678e-05,2]
[348414229,1736523037035,-500.0,8.678e-05,2]
[348414230,1736523037044,-500.0,8.678e-05,2]
[348414231,1736523037054,-500.0,8.678e-05,2]
[348414232,1736523037066,-500.0,8.678e-05,2]
[348414233,1736523037076,-500.0,8.678e-05,2]
[348414234,1736523037086,-500.0,8.678e-05,2]
[348414236,1736523037095,-501.28255635,8.678e-05,2]
[348414238,1736523037104,-500.0,8.678e-05,2]
[348414239,1736523037114,-500.87746691,8.678e-05,2]
[348414241,1736523037123,-500.0,8.678e-05,2]
[348414243,1736523037133,-2465.53,8.678e-05,2]
[348414245,1736523037142,-1808.33,8.678e-05,2]
[348414246,1736523037151,-2381.62,8.678e-05,2]
[348414247,1736523037160,-2145.58,8.678e-05,2]
[348414248,1736523037169,-1111.03,8.737e-05,2]
[348414249,1736523037180,-1204.43,8.737e-05,2]
[348414250,1736523037189,-502.73,8.737e-05,2]
[348414251,1736523037198,-1079.51,8.737e-05,2]
[348414252,1736523037207,-2026.92,8.737e-05,2]
[348414253,1736523037216,-383.49927483,8.737e-05,2]
[348414254,1736523037234,-756.73072517,8.737e-05,2]
[348414255,1736523037242,-176.34927483,8.737e-05,2]
[348414350,1736523038254,-1530.17072517,8.737e-05,2]
[348414352,1736523038263,-2967.49,8.737e-05,2]
[348414354,1736523038273,-1073.65,8.737e-05,2]
[348414356,1736523038282,-159.37050633,8.737e-05,2]
[348414358,1736523038291,-3032.39,8.737e-05,2]
[348414360,1736523038301,-1497.17755863,8.737e-05,2]
[348414362,1736523038313,-788.46244137,8.737e-05,2]
[348414364,1736523038326,-216.53755863,8.737e-05,2]
[348414365,1736523038361,-8362.35244137,8.737e-05,2]
[348414367,1736523038371,-1197.4,8.737e-05,2]
[348414369,1736523038380,-500.0,8.737e-05,2]
[348414371,1736523038390,-393.99804444,8.737e-05,2]
[348414374,1736523038414,-653.01195556,8.737e-05,2]
[348414376,1736523038424,-500.0,8.737e-05,2]
[348414378,1736523038433,-2700.71,8.737e-05,2]
[348414380,1736523038443,-1067.61,8.737e-05,2]
[348414382,1736523038452,-1530.87,8.737e-05,2]
[348414384,1736523038461,-3626.48,8.737e-05,2]
[348414386,1736523038471,-2057.32,8.737e-05,2]
[348414388,1736523038481,-1000.49804444,8.737e-05,2]
[348414390,1736523038493,-531.06932274,8.737e-05,2]
[348414392,1736523038505,-333.54263282,8.737e-05,2]
[348414394,1736523038514,-2720.67,8.737e-05,2]
[348414395,1736523038524,-1947.85,8.737e-05,2]
[348414396,1736523038533,-500.0,8.737e-05,2]
[348414397,1736523038542,-1435.82,8.737e-05,2]
[348414398,1736523038552,-500.0,8.737e-05,2]
[348414399,1736523038566,-3710.53,8.737e-05,2]
[348414400,1736523038576,-500.0,8.737e-05,2]